[Event "Titled Tuesday Blitz May 2 Early 2023"]
[White "Szente Varga, Fruzsina"]
[Black "Vlassov, Nikolai"]
[WhiteFideId "712264"]
[BlackFideId "4103360"]
[WhiteElo "1994"]
[BlackElo "2324"]
[Result "0-1"]
[Round "05"]
[TimeControl "180+2"]
[Date "2023.05.02"]
[WhiteClock "0:00:15"]
[BlackClock "0:01:10"]

1. e4 {[%clk 0:03:00]}  Nc6 {[%clk 0:02:59]} 2. d4 {[%clk 0:02:57]}  d5 {[%clk 0:02:58]} 3. e5 {[%clk 0:02:57]}  h5 {[%clk 0:02:58]} 4. c3 {[%clk 0:02:57]}  Bg4 {[%clk 0:02:56]} 5. Qc2 {[%clk 0:02:48]}  Qd7 {[%clk 0:02:54]} 6. Bd3 {[%clk 0:02:48]}  Nh6 {[%clk 0:02:54]} 7. Bxh6 {[%clk 0:02:40]}  Rxh6 {[%clk 0:02:52]} 8. f3 {[%clk 0:02:35]}  Be6 {[%clk 0:02:52]} 9. Ne2 {[%clk 0:02:35]}  g6 {[%clk 0:02:31]} 10. Nf4 {[%clk 0:02:23]}  Bf5 {[%clk 0:02:29]} 11. Bxf5 {[%clk 0:02:22]}  Qxf5 {[%clk 0:02:24]} 12. Qxf5 {[%clk 0:02:22]}  gxf5 {[%clk 0:02:23]} 13. Nxd5 {[%clk 0:02:22]}  O-O-O {[%clk 0:02:23]} 14. Nf4 {[%clk 0:02:10]}  e6 {[%clk 0:02:18]} 15. Nd2 {[%clk 0:02:02]}  h4 {[%clk 0:02:14]} 16. O-O-O {[%clk 0:01:55]}  Be7 {[%clk 0:02:07]} 17. Nh3 {[%clk 0:01:50]}  Rg8 {[%clk 0:02:05]} 18. Rhg1 {[%clk 0:01:47]}  Rhg6 {[%clk 0:02:04]} 19. Nf4 {[%clk 0:01:47]}  R6g7 {[%clk 0:02:03]} 20. Kc2 {[%clk 0:01:38]}  Bg5 {[%clk 0:02:01]} 21. Nd3 {[%clk 0:00:53]}  Be3 {[%clk 0:01:59]} 22. Rge1 {[%clk 0:00:53]}  f4 {[%clk 0:01:51]} 23. Nc4 {[%clk 0:00:40]}  Rxg2+ {[%clk 0:01:49]} 24. Kb3 {[%clk 0:00:40]}  Rxh2 {[%clk 0:01:38]} 25. Nxe3 {[%clk 0:00:40]}  fxe3 {[%clk 0:01:38]} 26. Rxe3 {[%clk 0:00:41]}  Rgg2 {[%clk 0:01:28]} 27. Re4 {[%clk 0:00:20]}  Na5+ {[%clk 0:01:19]} 28. Kb4 {[%clk 0:00:19]}  b6 {[%clk 0:01:20]} 29. Rf4 {[%clk 0:00:16]}  Kb7 {[%clk 0:01:14]} 30. a4 {[%clk 0:00:16]}  Rxb2+ {[%clk 0:01:09]} 31. Nxb2 {[%clk 0:00:15]}  Rxb2+ {[%clk 0:01:09]} 32. Ka3 {[%clk 0:00:15]}  Nc4# {[%clk 0:01:10]} 0-1


[Site "https://www.chess.com"]

[Event "Titled Tuesday Blitz May 2 Early 2023"]
[White "Erzhanov, Arman"]
[Black "Balague Camps, Marc"]
[WhiteFideId "4138821"]
[BlackFideId "2297914"]
[WhiteElo "2138"]
[BlackElo "2089"]
[Result "1-0"]
[Round "05"]
[TimeControl "180+2"]
[Date "2023.05.02"]
[WhiteClock "0:01:05"]
[BlackClock "0:00:32"]

1. e4 {[%clk 0:02:50]}  c5 {[%clk 0:03:00]} 2. Nf3 {[%clk 0:02:49]}  e6 {[%clk 0:03:00]} 3. b3 {[%clk 0:02:48]}  Nc6 {[%clk 0:02:56]} 4. Bb5 {[%clk 0:02:47]}  Nge7 {[%clk 0:02:56]} 5. Bb2 {[%clk 0:02:47]}  a6 {[%clk 0:02:56]} 6. Bxc6 {[%clk 0:02:48]}  Nxc6 {[%clk 0:02:57]} 7. O-O {[%clk 0:02:48]}  d5 {[%clk 0:02:56]} 8. exd5 {[%clk 0:02:48]}  Qxd5 {[%clk 0:02:54]} 9. Nc3 {[%clk 0:02:47]}  Qh5 {[%clk 0:02:51]} 10. Na4 {[%clk 0:02:47]}  b5 {[%clk 0:02:48]} 11. Nb6 {[%clk 0:02:46]}  Rb8 {[%clk 0:02:49]} 12. Nxc8 {[%clk 0:02:45]}  Rxc8 {[%clk 0:02:50]} 13. a4 {[%clk 0:02:42]}  Bd6 {[%clk 0:02:45]} 14. axb5 {[%clk 0:02:41]}  axb5 {[%clk 0:02:46]} 15. Bxg7 {[%clk 0:02:22]}  Rg8 {[%clk 0:02:46]} 16. Bb2 {[%clk 0:02:21]}  Qh3 {[%clk 0:02:46]} 17. g3 {[%clk 0:02:17]}  Rg6 {[%clk 0:02:40]} 18. Qe2 {[%clk 0:02:10]}  Rh6 {[%clk 0:02:16]} 19. Qxb5 {[%clk 0:02:01]}  Ke7 {[%clk 0:01:45]} 20. Ra6 {[%clk 0:01:53]}  Nd4 {[%clk 0:01:37]} 21. Bxd4 {[%clk 0:01:45]}  cxd4 {[%clk 0:01:37]} 22. Ra7+ {[%clk 0:01:34]}  Rc7 {[%clk 0:01:19]} 23. Rxc7+ {[%clk 0:01:32]}  Bxc7 {[%clk 0:01:20]} 24. Qb7 {[%clk 0:01:28]}  Kd8 {[%clk 0:01:15]} 25. Ra1 {[%clk 0:01:29]}  Qf5 {[%clk 0:01:01]} 26. Ra8+ {[%clk 0:01:28]}  Kd7 {[%clk 0:01:00]} 27. Qc8+ {[%clk 0:01:28]}  Ke7 {[%clk 0:00:36]} 28. Qxc7+ {[%clk 0:01:26]}  Kf6 {[%clk 0:00:36]} 29. Qd8+ {[%clk 0:01:12]}  Kg7 {[%clk 0:00:32]} 30. Qh8+ {[%clk 0:01:05]} 1-0


[Site "https://www.chess.com"]

[Event "Titled Tuesday Blitz May 2 Early 2023"]
[White "Buchenau, Frank"]
[Black "Karas, Marek"]
[WhiteFideId "4604350"]
[BlackFideId "14928558"]
[WhiteElo "2157"]
[BlackElo "2233"]
[Result "0-1"]
[Round "05"]
[TimeControl "180+2"]
[Date "2023.05.02"]
[WhiteClock "0:00:14"]
[BlackClock "0:01:10"]

1. e4 {[%clk 0:03:00]}  e6 {[%clk 0:02:59]} 2. d4 {[%clk 0:03:00]}  d5 {[%clk 0:03:00]} 3. Nc3 {[%clk 0:03:00]}  Nf6 {[%clk 0:03:00]} 4. Bg5 {[%clk 0:02:56]}  Be7 {[%clk 0:03:00]} 5. e5 {[%clk 0:02:55]}  Nfd7 {[%clk 0:03:00]} 6. Bxe7 {[%clk 0:02:55]}  Qxe7 {[%clk 0:03:01]} 7. f4 {[%clk 0:02:50]}  a6 {[%clk 0:03:01]} 8. Nf3 {[%clk 0:02:50]}  c5 {[%clk 0:03:02]} 9. dxc5 {[%clk 0:02:37]}  Nc6 {[%clk 0:03:01]} 10. Bd3 {[%clk 0:02:34]}  Nxc5 {[%clk 0:02:57]} 11. O-O {[%clk 0:02:33]}  Nxd3 {[%clk 0:02:56]} 12. cxd3 {[%clk 0:02:31]}  Bd7 {[%clk 0:02:51]} 13. Rc1 {[%clk 0:02:28]}  O-O {[%clk 0:02:51]} 14. f5 {[%clk 0:02:21]}  exf5 {[%clk 0:02:41]} 15. Nxd5 {[%clk 0:02:19]}  Qd8 {[%clk 0:02:41]} 16. d4 {[%clk 0:02:04]}  Be6 {[%clk 0:02:41]} 17. Nf4 {[%clk 0:01:58]}  Bd5 {[%clk 0:02:37]} 18. Nxd5 {[%clk 0:01:49]}  Qxd5 {[%clk 0:02:37]} 19. Rc5 {[%clk 0:01:45]}  Qxa2 {[%clk 0:02:32]} 20. d5 {[%clk 0:01:43]}  Rad8 {[%clk 0:02:30]} 21. Qb1 {[%clk 0:01:14]}  Qxb1 {[%clk 0:02:28]} 22. Rxb1 {[%clk 0:01:14]}  Ne7 {[%clk 0:02:18]} 23. d6 {[%clk 0:01:10]}  Nc6 {[%clk 0:02:18]} 24. b4 {[%clk 0:01:05]}  Rfe8 {[%clk 0:01:48]} 25. b5 {[%clk 0:01:02]}  axb5 {[%clk 0:01:48]} 26. Rcxb5 {[%clk 0:01:00]}  h6 {[%clk 0:01:46]} 27. h4 {[%clk 0:00:50]}  g5 {[%clk 0:01:31]} 28. hxg5 {[%clk 0:00:48]}  hxg5 {[%clk 0:01:32]} 29. Nxg5 {[%clk 0:00:43]}  Nxe5 {[%clk 0:01:30]} 30. Rd5 {[%clk 0:00:30]}  f6 {[%clk 0:01:19]} 31. Nf3 {[%clk 0:00:24]}  Rd7 {[%clk 0:01:16]} 32. Rbb5 {[%clk 0:00:16]}  Nxf3+ {[%clk 0:01:12]} 33. gxf3 {[%clk 0:00:16]}  Re6 {[%clk 0:01:13]} 34. Rxf5 {[%clk 0:00:14]}  Rexd6 {[%clk 0:01:11]} 35. Rxb7 {[%clk 0:00:14]}  Rxb7 {[%clk 0:01:10]} 0-1


[Site "https://www.chess.com"]

[Event "Titled Tuesday Blitz May 2 Early 2023"]
[White "Blokhin, Sofia"]
[Black "Chernomordik, Pavel"]
[WhiteFideId "4508190"]
[BlackFideId "2804530"]
[WhiteElo "1994"]
[BlackElo "2193"]
[Result "0-1"]
[Round "05"]
[TimeControl "180+2"]
[Date "2023.05.02"]
[WhiteClock "0:00:14"]
[BlackClock "0:00:20"]

1. d4 {[%clk 0:03:00]}  g6 {[%clk 0:02:59]} 2. e4 {[%clk 0:02:58]}  Bg7 {[%clk 0:02:58]} 3. Nc3 {[%clk 0:02:57]}  d6 {[%clk 0:02:58]} 4. f3 {[%clk 0:02:58]}  a6 {[%clk 0:02:58]} 5. Be3 {[%clk 0:02:57]}  b5 {[%clk 0:02:57]} 6. Qd2 {[%clk 0:02:58]}  Bb7 {[%clk 0:02:57]} 7. O-O-O {[%clk 0:02:57]}  Nd7 {[%clk 0:02:57]} 8. Kb1 {[%clk 0:02:57]}  Nb6 {[%clk 0:02:54]} 9. a3 {[%clk 0:02:52]}  e6 {[%clk 0:02:46]} 10. g4 {[%clk 0:02:49]}  h6 {[%clk 0:02:44]} 11. h4 {[%clk 0:02:45]}  Nf6 {[%clk 0:02:38]} 12. Bd3 {[%clk 0:02:38]}  Nfd7 {[%clk 0:02:35]} 13. Nge2 {[%clk 0:02:34]}  c5 {[%clk 0:02:33]} 14. dxc5 {[%clk 0:02:17]}  dxc5 {[%clk 0:02:27]} 15. Nxb5 {[%clk 0:01:53]}  axb5 {[%clk 0:02:25]} 16. Bxb5 {[%clk 0:01:52]}  Qc7 {[%clk 0:02:15]} 17. Bxc5 {[%clk 0:01:39]}  Qxc5 {[%clk 0:02:09]} 18. Bxd7+ {[%clk 0:01:36]}  Kf8 {[%clk 0:02:06]} 19. Qb4 {[%clk 0:01:15]}  Qxb4 {[%clk 0:01:59]} 20. axb4 {[%clk 0:01:15]}  Ke7 {[%clk 0:01:42]} 21. Bb5 {[%clk 0:01:09]}  Rhc8 {[%clk 0:01:35]} 22. c4 {[%clk 0:01:03]}  Ba6 {[%clk 0:01:11]} 23. Bxa6 {[%clk 0:00:53]}  Rxa6 {[%clk 0:01:10]} 24. c5 {[%clk 0:00:47]}  Nc4 {[%clk 0:01:07]} 25. b5 {[%clk 0:00:39]}  Ra5 {[%clk 0:01:01]} 26. Nd4 {[%clk 0:00:32]}  Kf8 {[%clk 0:00:36]} 27. Nc6 {[%clk 0:00:28]}  Rxb5 {[%clk 0:00:35]} 28. Rd8+ {[%clk 0:00:14]}  Rxd8 {[%clk 0:00:33]} 29. Nxd8 {[%clk 0:00:15]}  Rxb2+ {[%clk 0:00:32]} 30. Kc1 {[%clk 0:00:15]}  Bd4 {[%clk 0:00:24]} 31. c6 {[%clk 0:00:15]}  Be3+ {[%clk 0:00:22]} 32. Kd1 {[%clk 0:00:15]}  Rd2+ {[%clk 0:00:21]} 33. Ke1 {[%clk 0:00:15]}  Bf2+ {[%clk 0:00:20]} 34. Kf1 {[%clk 0:00:14]}  Ne3# {[%clk 0:00:20]} 0-1


[Site "https://www.chess.com"]

[Event "Titled Tuesday Blitz May 2 Early 2023"]
[White "Andreev, Konstantin"]
[Black "Kiselev, Pavel"]
[WhiteFideId "24239305"]
[BlackFideId "4191102"]
[WhiteElo "2106"]
[BlackElo "2145"]
[Result "1-0"]
[Round "05"]
[TimeControl "180+2"]
[Date "2023.05.02"]
[WhiteClock "0:00:56"]
[BlackClock "0:00:05"]

1. e4 {[%clk 0:02:57]}  c5 {[%clk 0:03:00]} 2. Nf3 {[%clk 0:02:54]}  Nc6 {[%clk 0:03:00]} 3. Nc3 {[%clk 0:02:53]}  g6 {[%clk 0:02:59]} 4. d4 {[%clk 0:02:53]}  cxd4 {[%clk 0:02:59]} 5. Nxd4 {[%clk 0:02:54]}  Bg7 {[%clk 0:02:59]} 6. Be3 {[%clk 0:02:53]}  Nf6 {[%clk 0:03:00]} 7. Bc4 {[%clk 0:02:52]}  O-O {[%clk 0:02:59]} 8. Bb3 {[%clk 0:02:52]}  d6 {[%clk 0:02:59]} 9. f3 {[%clk 0:02:53]}  Bd7 {[%clk 0:03:00]} 10. Qd2 {[%clk 0:02:53]}  Nxd4 {[%clk 0:02:59]} 11. Bxd4 {[%clk 0:02:54]}  b5 {[%clk 0:03:00]} 12. h4 {[%clk 0:02:55]}  b4 {[%clk 0:02:59]} 13. Nd5 {[%clk 0:02:55]}  Nxd5 {[%clk 0:02:59]} 14. Bxd5 {[%clk 0:02:56]}  Rc8 {[%clk 0:02:53]} 15. Bxg7 {[%clk 0:02:55]}  Kxg7 {[%clk 0:02:53]} 16. h5 {[%clk 0:02:56]}  Rh8 {[%clk 0:02:51]} 17. O-O-O {[%clk 0:02:54]}  Qb6 {[%clk 0:02:38]} 18. Kb1 {[%clk 0:02:52]}  h6 {[%clk 0:02:37]} 19. Qf4 {[%clk 0:02:48]}  Rcf8 {[%clk 0:02:27]} 20. Qg3 {[%clk 0:02:43]}  a5 {[%clk 0:02:01]} 21. e5 {[%clk 0:02:24]}  Bf5 {[%clk 0:02:01]} 22. Qf4 {[%clk 0:02:12]}  dxe5 {[%clk 0:01:56]} 23. Qxe5+ {[%clk 0:02:10]}  Qf6 {[%clk 0:01:55]} 24. Qe3 {[%clk 0:02:11]}  Rc8 {[%clk 0:01:52]} 25. Bb3 {[%clk 0:02:11]}  Qc6 {[%clk 0:01:50]} 26. Qd4+ {[%clk 0:02:07]}  f6 {[%clk 0:01:41]} 27. Rhe1 {[%clk 0:01:40]}  Bxc2+ {[%clk 0:01:22]} 28. Bxc2 {[%clk 0:01:41]}  Qxc2+ {[%clk 0:01:22]} 29. Ka1 {[%clk 0:01:41]}  Rhe8 {[%clk 0:01:14]} 30. hxg6 {[%clk 0:01:39]}  Qxg6 {[%clk 0:01:11]} 31. Qd7 {[%clk 0:01:38]}  Qf7 {[%clk 0:01:06]} 32. Qg4+ {[%clk 0:01:36]}  Qg6 {[%clk 0:01:03]} 33. Qd7 {[%clk 0:01:37]}  Qf7 {[%clk 0:01:03]} 34. Qb5 {[%clk 0:01:37]}  Ra8 {[%clk 0:01:00]} 35. Rd7 {[%clk 0:01:35]}  Rad8 {[%clk 0:00:22]} 36. Rxd8 {[%clk 0:01:29]}  Rxd8 {[%clk 0:00:23]} 37. Qxa5 {[%clk 0:01:30]}  Rd4 {[%clk 0:00:23]} 38. Qc5 {[%clk 0:01:27]}  Rd2 {[%clk 0:00:14]} 39. Qxb4 {[%clk 0:01:20]}  Rxg2 {[%clk 0:00:11]} 40. b3 {[%clk 0:01:13]}  Qh5 {[%clk 0:00:05]} 41. Rxe7+ {[%clk 0:01:07]}  Kg6 {[%clk 0:00:05]} 42. Qe4+ {[%clk 0:00:59]}  Kg5 {[%clk 0:00:05]} 43. Rg7+ {[%clk 0:00:56]} 1-0


[Site "https://www.chess.com"]

[Event "Titled Tuesday Blitz May 2 Early 2023"]
[White "Jimenez Almeida, Luis David"]
[Black "Jimenez Fernandez, Rebeca"]
[WhiteFideId "22242244"]
[BlackFideId "32070934"]
[WhiteElo "2245"]
[BlackElo "2008"]
[Result "0-1"]
[Round "05"]
[TimeControl "180+2"]
[Date "2023.05.02"]
[WhiteClock "0:00:04"]
[BlackClock "0:00:15"]

1. e4 {[%clk 0:03:00]}  c5 {[%clk 0:02:58]} 2. Nc3 {[%clk 0:03:00]}  Nc6 {[%clk 0:02:58]} 3. g3 {[%clk 0:03:01]}  g6 {[%clk 0:02:58]} 4. Bg2 {[%clk 0:03:01]}  Bg7 {[%clk 0:02:59]} 5. Nge2 {[%clk 0:03:01]}  d6 {[%clk 0:02:58]} 6. h3 {[%clk 0:03:01]}  e6 {[%clk 0:02:56]} 7. O-O {[%clk 0:03:00]}  Nge7 {[%clk 0:02:56]} 8. d3 {[%clk 0:02:59]}  O-O {[%clk 0:02:56]} 9. Be3 {[%clk 0:02:59]}  Nd4 {[%clk 0:02:53]} 10. Qd2 {[%clk 0:02:56]}  Rb8 {[%clk 0:02:52]} 11. a4 {[%clk 0:02:56]}  e5 {[%clk 0:02:27]} 12. Nc1 {[%clk 0:02:53]}  f5 {[%clk 0:02:24]} 13. f4 {[%clk 0:02:17]}  Be6 {[%clk 0:02:22]} 14. Nd5 {[%clk 0:02:11]}  Ndc6 {[%clk 0:01:58]} 15. c3 {[%clk 0:02:05]}  Qd7 {[%clk 0:01:57]} 16. Kh2 {[%clk 0:01:59]}  fxe4 {[%clk 0:01:54]} 17. dxe4 {[%clk 0:01:58]}  exf4 {[%clk 0:01:54]} 18. Bxf4 {[%clk 0:01:34]}  Ne5 {[%clk 0:01:50]} 19. b3 {[%clk 0:01:14]}  Nxd5 {[%clk 0:01:05]} 20. exd5 {[%clk 0:01:15]}  Bf5 {[%clk 0:01:00]} 21. g4 {[%clk 0:01:00]}  Bxg4 {[%clk 0:00:58]} 22. hxg4 {[%clk 0:01:01]}  Qxg4 {[%clk 0:00:52]} 23. Ne2 {[%clk 0:00:44]}  g5 {[%clk 0:00:34]} 24. Bg3 {[%clk 0:00:36]}  h5 {[%clk 0:00:25]} 25. Bh3 {[%clk 0:00:12]}  Nf3+ {[%clk 0:00:25]} 26. Rxf3 {[%clk 0:00:12]}  Qxf3 {[%clk 0:00:25]} 27. Rf1 {[%clk 0:00:12]}  Qe4 {[%clk 0:00:22]} 28. Be6+ {[%clk 0:00:11]}  Kh8 {[%clk 0:00:21]} 29. Rxf8+ {[%clk 0:00:07]}  Rxf8 {[%clk 0:00:22]} 30. Ng1 {[%clk 0:00:05]}  h4 {[%clk 0:00:21]} 31. Be1 {[%clk 0:00:04]}  Be5+ {[%clk 0:00:21]} 32. Kh3 {[%clk 0:00:03]}  Qh1+ {[%clk 0:00:21]} 33. Kg4 {[%clk 0:00:03]}  Qxg1+ {[%clk 0:00:19]} 34. Kh5 {[%clk 0:00:04]}  Qf1 {[%clk 0:00:14]} 35. Qxg5 {[%clk 0:00:04]}  Qf3+ {[%clk 0:00:15]} 36. Kh6 {[%clk 0:00:04]}  Bf4 {[%clk 0:00:15]} 0-1


[Site "https://www.chess.com"]

[Event "Titled Tuesday Blitz May 2 Early 2023"]
[White "Srinath, Rao S.V."]
[Black "Cueto, Jonny"]
[WhiteFideId "5028876"]
[BlackFideId "3300145"]
[WhiteElo "2196"]
[BlackElo "2234"]
[Result "1-0"]
[Round "05"]
[TimeControl "180+2"]
[Date "2023.05.02"]
[WhiteClock "0:01:05"]
[BlackClock "0:00:02"]

1. c4 {[%clk 0:03:00]}  e6 {[%clk 0:02:52]} 2. Nc3 {[%clk 0:02:59]}  b6 {[%clk 0:02:53]} 3. Nf3 {[%clk 0:02:56]}  Bb7 {[%clk 0:02:53]} 4. b3 {[%clk 0:02:52]}  Nf6 {[%clk 0:02:49]} 5. Bb2 {[%clk 0:02:52]}  Be7 {[%clk 0:02:49]} 6. e3 {[%clk 0:02:47]}  O-O {[%clk 0:02:49]} 7. d4 {[%clk 0:02:45]}  d6 {[%clk 0:02:36]} 8. Bd3 {[%clk 0:02:45]}  Nbd7 {[%clk 0:02:36]} 9. O-O {[%clk 0:02:45]}  Re8 {[%clk 0:02:32]} 10. Bc2 {[%clk 0:02:42]}  e5 {[%clk 0:02:28]} 11. Ng5 {[%clk 0:02:37]}  h6 {[%clk 0:02:08]} 12. Nge4 {[%clk 0:02:35]}  Bf8 {[%clk 0:02:08]} 13. Re1 {[%clk 0:02:26]}  Qe7 {[%clk 0:01:52]} 14. a4 {[%clk 0:02:19]}  a6 {[%clk 0:01:35]} 15. a5 {[%clk 0:02:12]}  bxa5 {[%clk 0:01:36]} 16. Rxa5 {[%clk 0:02:11]}  Nxe4 {[%clk 0:01:26]} 17. Nxe4 {[%clk 0:02:08]}  Nf6 {[%clk 0:01:23]} 18. Ng3 {[%clk 0:02:00]}  g6 {[%clk 0:00:51]} 19. dxe5 {[%clk 0:01:57]}  dxe5 {[%clk 0:00:49]} 20. Rxe5 {[%clk 0:01:58]}  Qb4 {[%clk 0:00:43]} 21. Rxe8 {[%clk 0:01:55]}  Rxe8 {[%clk 0:00:44]} 22. Bxf6 {[%clk 0:01:54]}  Re6 {[%clk 0:00:39]} 23. Bb2 {[%clk 0:01:47]}  a5 {[%clk 0:00:36]} 24. Qa1 {[%clk 0:01:36]}  Qd2 {[%clk 0:00:35]} 25. Re2 {[%clk 0:01:34]}  Qd7 {[%clk 0:00:31]} 26. h4 {[%clk 0:01:32]}  Qc6 {[%clk 0:00:31]} 27. e4 {[%clk 0:01:26]}  Bd6 {[%clk 0:00:30]} 28. Bh8 {[%clk 0:01:23]}  f6 {[%clk 0:00:28]} 29. Bxf6 {[%clk 0:01:19]}  Bxg3 {[%clk 0:00:28]} 30. Bh8 {[%clk 0:01:19]}  Re7 {[%clk 0:00:09]} 31. fxg3 {[%clk 0:01:17]}  Rf7 {[%clk 0:00:10]} 32. Qd4 {[%clk 0:01:12]}  Qe6 {[%clk 0:00:03]} 33. Be5 {[%clk 0:01:08]}  Bc8 {[%clk 0:00:03]} 34. Rf2 {[%clk 0:01:06]}  Rd7 {[%clk 0:00:03]} 35. Qc5 {[%clk 0:01:05]}  c6 {[%clk 0:00:02]} 36. Qf8+ {[%clk 0:01:04]}  Kh7 {[%clk 0:00:02]} 37. Qh8# {[%clk 0:01:05]} 1-0


[Site "https://www.chess.com"]

[Event "Titled Tuesday Blitz May 2 Early 2023"]
[White "Avazkhonov, Alikhon"]
[Black "Manukyan, Sargis A."]
[WhiteFideId "14208504"]
[BlackFideId "13303970"]
[WhiteElo "1739"]
[BlackElo "2187"]
[Result "1-0"]
[Round "05"]
[TimeControl "180+2"]
[Date "2023.05.02"]
[WhiteClock "0:00:16"]
[BlackClock "0:01:28"]

1. e4 {[%clk 0:02:32]}  c5 {[%clk 0:02:59]} 2. Nf3 {[%clk 0:02:31]}  d6 {[%clk 0:03:00]} 3. d4 {[%clk 0:02:31]}  cxd4 {[%clk 0:03:01]} 4. Nxd4 {[%clk 0:02:32]}  Nf6 {[%clk 0:03:01]} 5. Nc3 {[%clk 0:02:33]}  g6 {[%clk 0:03:02]} 6. f3 {[%clk 0:02:27]}  Bg7 {[%clk 0:03:02]} 7. Be3 {[%clk 0:02:28]}  O-O {[%clk 0:03:03]} 8. Qd2 {[%clk 0:02:29]}  Nc6 {[%clk 0:03:04]} 9. O-O-O {[%clk 0:02:28]}  d5 {[%clk 0:03:04]} 10. Nxc6 {[%clk 0:02:01]}  bxc6 {[%clk 0:03:04]} 11. e5 {[%clk 0:01:14]}  Nd7 {[%clk 0:03:02]} 12. f4 {[%clk 0:01:14]}  e6 {[%clk 0:03:03]} 13. g4 {[%clk 0:01:13]}  c5 {[%clk 0:03:02]} 14. Bf2 {[%clk 0:01:13]}  Bb7 {[%clk 0:03:01]} 15. Bg2 {[%clk 0:01:10]}  a5 {[%clk 0:03:01]} 16. Bg3 {[%clk 0:01:01]}  a4 {[%clk 0:03:01]} 17. Rhe1 {[%clk 0:00:58]}  a3 {[%clk 0:03:00]} 18. b3 {[%clk 0:00:58]}  c4 {[%clk 0:02:57]} 19. f5 {[%clk 0:00:55]}  cxb3 {[%clk 0:02:58]} 20. cxb3 {[%clk 0:00:55]}  Rc8 {[%clk 0:02:57]} 21. Kb1 {[%clk 0:00:46]}  Qa5 {[%clk 0:02:43]} 22. Nxd5 {[%clk 0:00:35]}  Qxd2 {[%clk 0:02:24]} 23. Ne7+ {[%clk 0:00:34]}  Kh8 {[%clk 0:02:25]} 24. Rxd2 {[%clk 0:00:33]}  Rc7 {[%clk 0:02:20]} 25. Bxb7 {[%clk 0:00:31]}  Rxb7 {[%clk 0:02:20]} 26. f6 {[%clk 0:00:32]}  Bh6 {[%clk 0:02:19]} 27. Rd6 {[%clk 0:00:29]}  Nc5 {[%clk 0:02:09]} 28. Bf2 {[%clk 0:00:21]}  Ne4 {[%clk 0:02:08]} 29. Rxe4 {[%clk 0:00:20]}  Rb5 {[%clk 0:01:55]} 30. h4 {[%clk 0:00:20]}  Rc5 {[%clk 0:01:55]} 31. Bxc5 {[%clk 0:00:19]}  Rb8 {[%clk 0:01:53]} 32. g5 {[%clk 0:00:19]}  Bf8 {[%clk 0:01:53]} 33. Red4 {[%clk 0:00:17]}  h5 {[%clk 0:01:48]} 34. Rd8 {[%clk 0:00:17]}  Rb5 {[%clk 0:01:39]} 35. Nxg6+ {[%clk 0:00:17]}  Kh7 {[%clk 0:01:36]} 36. Rxf8 {[%clk 0:00:17]}  Kxg6 {[%clk 0:01:35]} 37. Bxa3 {[%clk 0:00:13]}  Rb6 {[%clk 0:01:27]} 38. Rf4 {[%clk 0:00:13]}  Rc6 {[%clk 0:01:26]} 39. Rg8+ {[%clk 0:00:13]}  Kh7 {[%clk 0:01:25]} 40. Rg7+ {[%clk 0:00:14]}  Kh8 {[%clk 0:01:26]} 41. Rxf7 {[%clk 0:00:12]}  Rc8 {[%clk 0:01:25]} 42. g6 {[%clk 0:00:11]}  Kg8 {[%clk 0:01:24]} 43. Rg7+ {[%clk 0:00:11]}  Kh8 {[%clk 0:01:24]} 44. f7 {[%clk 0:00:11]}  Kxg7 {[%clk 0:01:21]} 45. f8=Q+ {[%clk 0:00:12]}  Rxf8 {[%clk 0:01:21]} 46. Bxf8+ {[%clk 0:00:12]}  Kxg6 {[%clk 0:01:22]} 47. Rf6+ {[%clk 0:00:13]}  Kh7 {[%clk 0:01:22]} 48. Bh6 {[%clk 0:00:14]}  Kg8 {[%clk 0:01:23]} 49. b4 {[%clk 0:00:13]}  Kh7 {[%clk 0:01:24]} 50. b5 {[%clk 0:00:13]}  Kg8 {[%clk 0:01:25]} 51. b6 {[%clk 0:00:14]}  Kh7 {[%clk 0:01:26]} 52. b7 {[%clk 0:00:14]}  Kg8 {[%clk 0:01:27]} 53. b8=Q+ {[%clk 0:00:14]}  Kh7 {[%clk 0:01:27]} 54. Qc7+ {[%clk 0:00:15]}  Kg8 {[%clk 0:01:28]} 55. Rf8# {[%clk 0:00:16]} 1-0


[Site "https://www.chess.com"]

[Event "Titled Tuesday Blitz May 2 Early 2023"]
[White "Hirneise, Jens"]
[Black "Gutkin, Ilya"]
[WhiteFideId "24614734"]
[BlackFideId "16203470"]
[WhiteElo "2345"]
[BlackElo "2265"]
[Result "0-1"]
[Round "05"]
[TimeControl "180+2"]
[Date "2023.05.02"]
[WhiteClock "0:00:05"]
[BlackClock "0:00:01"]

1. Nf3 {[%clk 0:03:00]}  c5 {[%clk 0:02:59]} 2. c4 {[%clk 0:02:52]}  g6 {[%clk 0:02:59]} 3. Nc3 {[%clk 0:02:51]}  Bg7 {[%clk 0:02:59]} 4. g3 {[%clk 0:02:40]}  Nc6 {[%clk 0:02:59]} 5. Bg2 {[%clk 0:02:36]}  d6 {[%clk 0:03:00]} 6. O-O {[%clk 0:02:31]}  e6 {[%clk 0:03:00]} 7. d3 {[%clk 0:02:24]}  Nge7 {[%clk 0:02:59]} 8. a3 {[%clk 0:02:16]}  b6 {[%clk 0:02:59]} 9. Bd2 {[%clk 0:02:15]}  Bb7 {[%clk 0:02:58]} 10. Rb1 {[%clk 0:02:14]}  O-O {[%clk 0:02:58]} 11. b4 {[%clk 0:02:13]}  Qd7 {[%clk 0:02:59]} 12. b5 {[%clk 0:02:03]}  Nd4 {[%clk 0:02:56]} 13. e3 {[%clk 0:01:57]}  Nxf3+ {[%clk 0:02:52]} 14. Bxf3 {[%clk 0:01:58]}  d5 {[%clk 0:02:29]} 15. Qe2 {[%clk 0:01:48]}  dxc4 {[%clk 0:02:28]} 16. Bxb7 {[%clk 0:01:45]}  Qxb7 {[%clk 0:02:23]} 17. dxc4 {[%clk 0:01:43]}  Rfd8 {[%clk 0:02:20]} 18. Rfd1 {[%clk 0:01:39]}  Rd7 {[%clk 0:02:18]} 19. Be1 {[%clk 0:01:38]}  Rad8 {[%clk 0:02:17]} 20. Rxd7 {[%clk 0:01:32]}  Rxd7 {[%clk 0:02:17]} 21. Rd1 {[%clk 0:01:29]}  Nf5 {[%clk 0:02:13]} 22. Rxd7 {[%clk 0:01:18]}  Qxd7 {[%clk 0:02:14]} 23. Qf3 {[%clk 0:01:18]}  h5 {[%clk 0:01:59]} 24. Ne4 {[%clk 0:01:08]}  Qd3 {[%clk 0:01:14]} 25. Ng5 {[%clk 0:01:05]}  Bf6 {[%clk 0:01:14]} 26. e4 {[%clk 0:00:33]}  Qb1 {[%clk 0:00:48]} 27. h4 {[%clk 0:00:19]}  Qxe1+ {[%clk 0:00:42]} 28. Kg2 {[%clk 0:00:19]}  Bxg5 {[%clk 0:00:32]} 29. exf5 {[%clk 0:00:19]}  Be7 {[%clk 0:00:10]} 30. fxg6 {[%clk 0:00:19]}  fxg6 {[%clk 0:00:10]} 31. Qa8+ {[%clk 0:00:20]}  Kf7 {[%clk 0:00:10]} 32. Qxa7 {[%clk 0:00:20]}  Qe4+ {[%clk 0:00:10]} 33. Kg1 {[%clk 0:00:21]}  Qxc4 {[%clk 0:00:09]} 34. Qxb6 {[%clk 0:00:21]}  Qc1+ {[%clk 0:00:08]} 35. Kg2 {[%clk 0:00:20]}  Qxa3 {[%clk 0:00:08]} 36. Qc6 {[%clk 0:00:19]}  Qb4 {[%clk 0:00:08]} 37. b6 {[%clk 0:00:18]}  c4 {[%clk 0:00:07]} 38. Qc7 {[%clk 0:00:10]}  Kf6 {[%clk 0:00:07]} 39. Qf4+ {[%clk 0:00:05]}  Kg7 {[%clk 0:00:07]} 40. Qc7 {[%clk 0:00:06]}  Kf8 {[%clk 0:00:06]} 41. b7 {[%clk 0:00:04]}  Bd6 {[%clk 0:00:06]} 42. Qd8+ {[%clk 0:00:03]}  Kf7 {[%clk 0:00:07]} 43. Qd7+ {[%clk 0:00:03]}  Kf6 {[%clk 0:00:07]} 44. Qd8+ {[%clk 0:00:03]}  Ke5 {[%clk 0:00:07]} 45. Qd7 {[%clk 0:00:02]}  c3 {[%clk 0:00:07]} 46. Qc6 {[%clk 0:00:03]}  Qb2 {[%clk 0:00:04]} 47. Kh3 {[%clk 0:00:02]}  c2 {[%clk 0:00:03]} 48. f4+ {[%clk 0:00:02]}  Kf6 {[%clk 0:00:01]} 49. Qxd6 {[%clk 0:00:03]}  c1=Q {[%clk 0:00:02]} 50. Qe5+ {[%clk 0:00:03]}  Qxe5 {[%clk 0:00:01]} 51. fxe5+ {[%clk 0:00:04]}  Kf5 {[%clk 0:00:01]} 52. b8=Q {[%clk 0:00:05]}  Qh1# {[%clk 0:00:01]} 0-1


[Site "https://www.chess.com"]